bitfinex/quotes_BTCUSD_20250610
["timestamp","ask_amount","ask_price","bid_price","bid_amount"]
[1749514070744,0.77262705,110150.0,110140.0,0.002]
[1749514070954,1.70566592,110150.0,110140.0,0.00204844]
[1749514071160,1.70561151,110150.0,110140.0,0.00204844]
[1749514071375,1.79740937,110150.0,110140.0,0.00204844]
[1749514072020,1.80240937,110150.0,110140.0,0.00204844]
[1749514072222,0.77206332,110130.0,110120.0,0.002]
[1749514072434,0.77206332,110130.0,110120.0,0.0177]
[1749514072435,0.84357056,110130.0,110120.0,0.0177]
[1749514072673,1.28307754,110130.0,110120.0,0.0338]
[1749514072883,1.29277676,110130.0,110120.0,0.0338]
[1749514073332,1.29281676,110130.0,110120.0,0.0338]
[1749514073958,1.29381676,110130.0,110120.0,0.0338]
[1749514074361,1.32092093,110130.0,110120.0,0.032916]
[1749514074563,1.32108776,110130.0,110120.0,0.032916]
[1749514074686,1.3481863,110130.0,110120.0,0.032916]
[1749514076510,1.2953713,110130.0,110120.0,0.032916]
[1749514078596,0.9057713,110130.0,110120.0,0.032916]
[1749514078809,1.2357209,110130.0,110120.0,0.032916]
[1749514079046,1.6257209,110130.0,110120.0,0.032916]
[1749514079517,1.6258009,110130.0,110120.0,0.032916]
[1749514079750,1.32791876,110130.0,110120.0,0.032916]
[1749514079955,1.6257609,110130.0,110120.0,0.032916]
[1749514080584,1.1861209,110130.0,110120.0,0.032916]
[1749514080796,1.6256809,110130.0,110120.0,0.032916]
[1749514081004,1.5757609,110130.0,110120.0,0.032916]
[1749514081217,1.6257609,110130.0,110120.0,0.032916]
[1749514082490,1.5757609,110130.0,110120.0,0.032916]
[1749514082916,1.6257609,110130.0,110120.0,0.032916]
[1749514083559,1.5757609,110130.0,110120.0,0.032916]
[1749514083984,1.6255209,110130.0,110120.0,0.032916]
[1749514084205,1.60384488,110130.0,110120.0,0.032916]
[1749514087303,1.25916488,110130.0,110120.0,0.032916]
[1749514087512,1.60340488,110130.0,110120.0,0.032916]
[1749514087717,1.55340488,110130.0,110120.0,0.032916]
[1749514087947,1.60340488,110130.0,110120.0,0.032916]
[1749514088159,1.45060332,110130.0,110120.0,0.032916]
[1749514088364,1.50060332,110130.0,110120.0,0.032916]
[1749514088571,1.45060332,110130.0,110120.0,0.032916]
[1749514088985,0.72164332,110130.0,110120.0,0.032916]
[1749514089195,1.16052332,110130.0,110120.0,0.032916]
[1749514093260,1.25232118,110130.0,110120.0,0.032916]
[1749514093562,1.25232118,110130.0,110120.0,0.016816]
[1749514095637,1.25232118,110130.0,110120.0,0.031816]
[1749514096034,1.25232118,110130.0,110120.0,0.001116]
[1749514097236,1.59232118,110130.0,110120.0,0.001116]
[1749514097835,1.68411904,110130.0,110120.0,0.001116]
[1749514098038,1.59232118,110130.0,110120.0,0.001116]
[1749514098573,1.59232118,110130.0,110120.0,0.017616]
[1749514099767,1.59232118,110130.0,110120.0,0.034216]
[1749514100958,1.59204875,110130.0,110120.0,0.017616]
[1749514101212,1.59204875,110130.0,110120.0,0.001116]
[1749514101447,1.61371758,110130.0,110120.0,0.001116]
[1749514103759,1.61371758,110130.0,110120.0,0.016116]
[1749514104574,1.61371758,110130.0,110120.0,0.001116]
[1749514105470,1.68725687,110130.0,110120.0,0.001116]
[1749514105779,1.67156318,110130.0,110120.0,0.001116]
[1749514106173,1.80772404,110130.0,110120.0,0.001116]
[1749514106393,1.78060491,110130.0,110120.0,0.001116]
[1749514106997,1.83480439,110130.0,110120.0,0.001116]
[1749514107207,1.92660225,110130.0,110120.0,0.001116]
[1749514108201,1.83480439,110130.0,110120.0,0.001116]
[1749514108406,1.78060491,110130.0,110120.0,0.001116]
[1749514110114,1.80770789,110130.0,110120.0,0.001116]
[1749514112654,1.78060491,110130.0,110120.0,0.001116]
[1749514113303,1.75890961,110130.0,110120.0,0.001116]
[1749514113520,1.37002961,110130.0,110120.0,0.001116]
[1749514113730,1.74891836,110130.0,110120.0,0.001116]
[1749514115182,1.78507922,110130.0,110120.0,0.001116]
[1749514115599,1.74891836,110130.0,110120.0,0.001116]
[1749514116634,1.68407836,110130.0,110120.0,0.001116]
[1749514117717,1.66837836,110130.0,110120.0,0.001116]
[1749514118147,1.37205622,110130.0,110120.0,0.001116]
[1749514118382,1.66821836,110130.0,110120.0,0.001116]
[1749514118597,1.66817836,110130.0,110120.0,0.001116]
[1749514119225,1.68397836,110130.0,110120.0,0.001116]
[1749514119434,1.69927836,110130.0,110120.0,0.001116]
[1749514119874,1.79107622,110130.0,110120.0,0.001116]
[1749514120962,1.82723708,110130.0,110120.0,0.001116]
[1749514121443,1.80014747,110130.0,110120.0,0.001116]
[1749514121667,1.8272297,110130.0,110120.0,0.001116]
[1749514123468,1.73543184,110130.0,110120.0,0.001116]
[1749514123715,1.73495184,110130.0,110120.0,0.001116]
[1749514125752,1.73535184,110130.0,110120.0,0.001116]
[1749514127548,1.76262284,110130.0,110120.0,0.001116]
[1749514127981,1.37478284,110130.0,110120.0,0.001116]
[1749514128217,1.76218284,110130.0,110120.0,0.001116]
[1749514130045,1.76194284,110130.0,110120.0,0.001116]
[1749514130288,1.34368284,110130.0,110120.0,0.001116]
[1749514130533,1.69464198,110130.0,110120.0,0.001116]
[1749514131184,1.78643984,110130.0,110120.0,0.001116]
[1749514131398,1.8226007,110130.0,110120.0,0.001116]
[1749514131647,1.8224007,110130.0,110120.0,0.001116]
[1749514131859,1.34368284,110130.0,110120.0,0.001116]
[1749514132074,1.68052284,110130.0,110120.0,0.001116]
[1749514132290,1.73052284,110130.0,110120.0,0.001116]
[1749514134402,1.65344061,110130.0,110120.0,0.001116]
[1749514134634,1.70344061,110130.0,110120.0,0.001116]
[1749514134854,1.71904061,110130.0,110120.0,0.001116]
[1749514135334,1.73544061,110130.0,110120.0,0.001116]
[1749514135781,1.82723847,110130.0,110120.0,0.001116]
[1749514136004,1.73544061,110130.0,110120.0,0.001116]
[1749514140653,1.34860061,110130.0,110120.0,0.001116]
[1749514140867,1.73540061,110130.0,110120.0,0.001116]
[1749514143420,1.68540061,110130.0,110120.0,0.001116]
[1749514143635,1.82719847,110130.0,110120.0,0.001116]
[1749514144491,1.73315847,110130.0,110120.0,0.001116]
[1749514144703,1.70340061,110130.0,110120.0,0.001116]
[1749514144922,1.70340061,110130.0,110120.0,0.033216]
[1749514144923,0.41943324,110130.0,110120.0,0.033216]
[1749514145130,1.59000875,110130.0,110120.0,0.033216]
[1749514145979,1.20320875,110130.0,110120.0,0.033216]
[1749514146192,1.59000875,110130.0,110120.0,0.033216]
[1749514148152,1.59000875,110130.0,110120.0,0.033016]
[1749514151308,1.20320875,110130.0,110120.0,0.033016]
[1749514151520,1.58996875,110130.0,110120.0,0.033016]
[1749514153456,1.61165892,110130.0,110120.0,0.033016]
[1749514155389,1.56165892,110130.0,110120.0,0.033016]
[1749514155602,1.61165892,110130.0,110120.0,0.033016]
[1749514156055,1.58996875,110130.0,110120.0,0.033016]
[1749514159116,1.61166097,110130.0,110120.0,0.033016]
[1749514159430,1.22490097,110130.0,110120.0,0.033016]
[1749514159623,1.61122097,110130.0,110120.0,0.033016]
[1749514160842,1.61122097,110130.0,110120.0,0.017316]
[1749514161463,1.58952875,110130.0,110120.0,0.017316]
[1749514161918,1.58952875,110130.0,110120.0,0.000916]
[1749514162216,1.55592875,110130.0,110120.0,0.000916]
[1749514162433,1.60592875,110130.0,110120.0,0.000916]
[1749514163668,1.20320875,110130.0,110120.0,0.000916]
[1749514163896,1.58952875,110130.0,110120.0,0.000916]
[1749514166086,1.60472875,110130.0,110120.0,0.000916]
[1749514168733,1.62082875,110130.0,110120.0,0.000916]
[1749514169871,1.73410485,110130.0,110120.0,0.000916]
[1749514170554,1.69794399,110130.0,110120.0,0.000916]
[1749514170780,1.73410485,110130.0,110120.0,0.000916]
[1749514173736,1.69794399,110130.0,110120.0,0.000916]
[1749514174611,1.73677291,110130.0,110120.0,0.000916]
[1749514174784,1.73410485,110130.0,110120.0,0.000916]
[1749514177525,1.69794399,110130.0,110120.0,0.000916]
[1749514177734,1.75480418,110130.0,110120.0,0.000916]
[1749514177938,2.28000418,110130.0,110120.0,0.000916]
[1749514178151,2.37180204,110130.0,110120.0,0.000916]
[1749514179211,2.3466868,110130.0,110120.0,0.000916]
[1749514180444,0.24073552,110100.0,110090.0,0.02676002]
[1749514180639,0.62701552,110100.0,110090.0,0.03526166]
[1749514181260,0.62701552,110100.0,110090.0,0.03526167]
[1749514181684,0.67701552,110100.0,110090.0,0.03774655]
[1749514181890,1.10881338,110100.0,110090.0,0.02668653]
[1749514182093,1.10881338,110100.0,110090.0,0.00248488]
[1749514182094,1.09089499,110100.0,110090.0,0.00248488]
[1749514182292,1.14089499,110100.0,110090.0,0.01998488]
[1749514182675,1.11920545,110100.0,110090.0,0.01998488]
[1749514183120,1.11920545,110100.0,110090.0,0.01798488]
[1749514183538,1.14088639,110100.0,110090.0,0.00048488]
[1749514184395,1.11920545,110100.0,110090.0,0.00048488]
[1749514185480,1.14088403,110100.0,110090.0,0.00048488]
[1749514186588,1.14188403,110100.0,110090.0,0.00048488]
[1749514186816,1.61280403,110100.0,110090.0,0.00048488]
[1749514187524,1.61380403,110100.0,110090.0,0.00048488]
[1749514188596,1.62960403,110100.0,110090.0,0.00048488]
[1749514189947,1.64600403,110100.0,110090.0,0.00048488]
[1749514193129,1.62960403,110100.0,110090.0,0.00048488]
[1749514193360,1.61380403,110100.0,110090.0,0.00048488]
[1749514200214,1.56368403,110100.0,110090.0,0.01608488]
[1749514200297,1.61368403,110100.0,110090.0,0.03208488]
[1749514200753,1.59200545,110100.0,110090.0,0.04058673]
[1749514200983,1.59200545,110100.0,110090.0,0.03208488]
[1749514201199,1.61369865,110100.0,110090.0,0.03208488]
[1749514201432,1.61369865,110100.0,110090.0,0.01608488]
[1749514201659,1.61369865,110100.0,110090.0,0.00048488]
[1749514201864,1.64519865,110100.0,110090.0,0.00048488]
[1749514203631,1.73699651,110100.0,110090.0,0.00048488]
[1749514204042,1.64519865,110100.0,110090.0,0.00048488]
[1749514204723,1.62350545,110100.0,110090.0,0.00048488]
[1749514207622,1.60850545,110100.0,110090.0,0.00048488]
[1749514207849,1.59200545,110100.0,110090.0,0.00048488]
[1749514208075,1.59196545,110100.0,110090.0,0.00048488]
[1749514208295,1.70006331,110100.0,110090.0,0.00048488]
[1749514208726,1.29764331,110100.0,110090.0,0.00048488]
[1749514208935,1.59192545,110100.0,110090.0,0.00048488]
[1749514209145,1.20584545,110100.0,110090.0,0.00048488]
[1749514209357,1.59192545,110100.0,110090.0,0.00048488]
[1749514210460,1.20584545,110100.0,110090.0,0.00048488]
[1749514210672,1.59192545,110100.0,110090.0,0.01598488]
[1749514211330,1.59192545,110100.0,110090.0,0.00048488]
[1749514211781,1.20584545,110100.0,110090.0,0.00048488]
[1749514211996,1.59192545,110100.0,110090.0,0.02449919]
[1749514212642,1.59192545,110100.0,110090.0,0.01598488]
[1749514212856,1.59192545,110100.0,110090.0,0.02449909]
[1749514213319,1.59192545,110100.0,110090.0,0.0244991]
[1749514213562,1.59192545,110100.0,110090.0,0.01598488]
[1749514213770,1.59192545,110100.0,110090.0,0.0244991]
[1749514213982,1.59192545,110100.0,110090.0,0.01598488]
[1749514214188,1.59192545,110100.0,110090.0,0.0244991]
[1749514214455,1.49832545,110100.0,110090.0,0.01598488]
[1749514214658,1.59192545,110100.0,110090.0,0.01598488]
[1749514215082,1.59192545,110100.0,110090.0,0.02449909]
[1749514215511,1.59192545,110100.0,110090.0,0.00899895]
[1749514216433,1.59192545,110100.0,110090.0,0.00048488]
[1749514216865,1.59192545,110100.0,110090.0,0.00899895]
[1749514217236,1.59192545,110100.0,110090.0,0.00048488]
[1749514217444,1.59192545,110100.0,110090.0,0.00899864]
[1749514217641,1.15584545,110100.0,110090.0,0.00899864]
[1749514217841,1.58149338,110100.0,110090.0,0.03358488]
[1749514218071,1.58149338,110100.0,110090.0,0.05912564]
[1749514218286,0.24273552,110100.0,110090.0,0.04391459]
[1749514218500,0.57877552,110100.0,110090.0,0.08594043]
[1749514218666,0.67877552,110100.0,110090.0,0.08345544]
[1749514219081,0.62877552,110100.0,110090.0,0.10047951]
[1749514219285,0.62777552,110100.0,110090.0,0.10047928]
[1749514219572,0.62677552,110100.0,110090.0,0.10047925]
[1749514219998,0.62677552,110100.0,110090.0,0.08345544]
[1749514220420,0.33421552,110100.0,110090.0,0.08345544]
[1749514220627,0.67665552,110100.0,110090.0,0.08345544]
[1749514224860,0.29073552,110100.0,110090.0,0.08345544]
[1749514225059,0.67657552,110100.0,110090.0,0.08345544]
[1749514226018,0.29073552,110100.0,110090.0,0.08345544]
[1749514226223,0.53309552,110100.0,110090.0,0.1752533]
[1749514227499,0.53309552,110100.0,110090.0,0.1772533]
[1749514228761,0.53309552,110100.0,110090.0,0.20439611]
[1749514229184,0.53309552,110100.0,110090.0,0.20639611]
[1749514229396,0.53309552,110100.0,110090.0,0.20639607]
[1749514230448,0.53305552,110100.0,110090.0,0.20639607]
[1749514232266,0.53305552,110100.0,110090.0,0.1792533]
[1749514234164,0.24073552,110100.0,110090.0,0.1792533]
[1749514234365,0.62649552,110100.0,110090.0,0.1792533]
[1749514238329,0.62645552,110100.0,110090.0,0.20638862]
[1749514239136,0.19073552,110100.0,110090.0,0.54638862]
[1749514239316,0.19073552,110100.0,110090.0,0.57342754]
[1749514239958,0.19073552,110100.0,110090.0,0.57142754]
[1749514240170,0.19073552,110100.0,110090.0,0.56942754]
[1749514240392,0.19073552,110100.0,110090.0,1.57005066]
[1749514240617,0.19073552,110100.0,110090.0,1.0742391]
[1749514241382,0.19073552,110100.0,110090.0,1.11042596]
[1749514242262,0.19073552,110100.0,110090.0,1.05625172]
[1749514242879,0.19073552,110100.0,110090.0,1.11042596]
[1749514243293,0.28163654,110110.0,110090.0,1.11042596]
[1749514243548,0.18163427,110120.0,110110.0,5.12074085]
[1749514243745,0.23360355,110130.0,110120.0,0.01454085]
[1749514243951,0.18360355,110130.0,110120.0,0.61015754]
[1749514244154,0.18360355,110130.0,110120.0,0.58074459]
[1749514244366,0.18360355,110130.0,110120.0,0.10906094]
[1749514244607,0.18360355,110130.0,110120.0,0.70194022]
[1749514244895,0.18360355,110130.0,110120.0,0.2008588]
[1749514245088,0.18360355,110130.0,110120.0,0.64767818]
[1749514245291,0.18360355,110130.0,110120.0,0.17581343]
[1749514245506,0.23360355,110130.0,110120.0,0.19091343]
[1749514245714,0.53056355,110130.0,110120.0,0.66277818]
[1749514246148,0.53056355,110130.0,110120.0,0.64767818]
[1749514246350,0.58056355,110130.0,110120.0,0.65067818]
[1749514247595,0.58056355,110130.0,110120.0,0.03012791]
[1749514247596,0.56156355,110130.0,110120.0,0.03012791]
[1749514247808,0.56156355,110130.0,110120.0,0.003]
[1749514247809,1.11037511,110130.0,110120.0,0.003]
[1749514248015,0.70468355,110130.0,110120.0,0.003]
[1749514248456,0.31460355,110130.0,110120.0,0.003]
[1749514248679,0.70460355,110130.0,110120.0,0.003]
[1749514251266,1.20341511,110130.0,110120.0,0.003]
[1749514251478,0.70460355,110130.0,110120.0,0.003]
[1749514265540,0.70464355,110130.0,110120.0,0.003]
[1749514273477,1.79406453,110130.0,110120.0,0.003]
[1749514273682,2.17586239,110130.0,110120.0,0.003]
[1749514273929,2.13406453,110130.0,110120.0,0.003]
[1749514274339,2.16115946,110130.0,110120.0,0.003]
[1749514274751,2.16115946,110130.0,110120.0,0.001]
[1749514274966,1.16353634,110130.0,110120.0,0.001]
[1749514275228,1.6623479,110130.0,110120.0,0.001]
[1749514275638,1.6623479,110130.0,110090.0,0.00048488]
[1749514275639,0.19981775,110100.0,110090.0,0.00048488]
[1749514275796,0.58933775,110100.0,110090.0,0.00048488]
[1749514275994,0.19981775,110100.0,110090.0,0.01568488]
[1749514276194,0.63921775,110100.0,110090.0,0.01568488]
[1749514276775,0.63921775,110100.0,110090.0,0.01768488]
[1749514277240,0.63921775,110100.0,110090.0,0.01868488]
[1749514278024,0.68921775,110100.0,110090.0,0.01868488]
[1749514279293,0.29981775,110100.0,110090.0,0.01868488]
[1749514279505,0.68885775,110100.0,110090.0,0.03438488]
[1749514279743,0.68885775,110100.0,110090.0,0.01868488]
[1749514279903,0.68885775,110100.0,110090.0,0.00348488]
[1749514280878,0.68697775,110100.0,110090.0,0.51879644]
[1749514281086,1.30938717,110100.0,110090.0,0.00348488]
[1749514281525,1.33658111,110100.0,110090.0,0.00348488]
[1749514283362,0.83776955,110100.0,110090.0,0.00348488]
[1749514283562,1.33658111,110100.0,110090.0,0.00348488]
[1749514284387,0.83776955,110100.0,110090.0,0.00348488]
[1749514284613,1.33658111,110100.0,110090.0,0.00348488]
[1749514285581,0.83776955,110100.0,110090.0,0.00348488]
[1749514285766,1.33658111,110100.0,110090.0,0.00348488]
[1749514286449,0.83776955,110100.0,110090.0,0.00348488]
[1749514286657,1.33658111,110100.0,110090.0,0.00348488]
[1749514289520,0.83776955,110100.0,110090.0,0.00348488]
[1749514289788,1.33658111,110100.0,110090.0,0.00348488]
[1749514290219,0.83776955,110100.0,110090.0,0.00348488]
[1749514290433,1.33658111,110100.0,110090.0,0.00348488]
[1749514291639,0.45060955,110100.0,110090.0,0.00348488]
[1749514291834,0.83700955,110100.0,110090.0,0.00348488]
[1749514293638,1.33582111,110100.0,110090.0,0.00348488]
[1749514294085,0.83700955,110100.0,110090.0,0.00348488]
[1749514294260,1.33582111,110100.0,110090.0,0.00348488]
[1749514295534,1.33578111,110100.0,110090.0,0.00348488]
[1749514296349,1.28578111,110100.0,110090.0,0.00348488]
[1749514296553,1.33578111,110100.0,110090.0,0.00348488]
[1749514297800,0.83696955,110100.0,110090.0,0.00348488]
[1749514298235,1.28578111,110100.0,110090.0,0.00348488]
[1749514298473,1.33578111,110100.0,110090.0,0.00348488]
[1749514299787,1.28578111,110100.0,110090.0,0.00348488]
[1749514299995,1.33578111,110100.0,110090.0,0.00348488]
[1749514300204,0.83696955,110100.0,110090.0,0.00348488]
[1749514300615,1.33578111,110100.0,110090.0,0.00348488]
[1749514300822,0.83696955,110100.0,110090.0,0.00348488]
[1749514301031,1.33578111,110100.0,110090.0,0.00348488]
[1749514302585,0.94942111,110100.0,110090.0,0.00348488]
[1749514302794,1.33578111,110100.0,110090.0,0.00348488]
[1749514303221,1.36305511,110100.0,110090.0,0.00348488]
[1749514303426,0.97669511,110100.0,110090.0,0.00348488]
[1749514303636,1.36305511,110100.0,110090.0,0.00348488]
[1749514304265,0.86424355,110100.0,110090.0,0.00348488]
[1749514304500,1.36305511,110100.0,110090.0,0.00348488]
[1749514306622,0.86424355,110100.0,110090.0,0.00348488]
[1749514306798,1.36305511,110100.0,110090.0,0.00348488]
[1749514308355,2.20186667,110100.0,110090.0,0.00348488]
[1749514309399,2.20186667,110100.0,110090.0,0.00148488]
[1749514309574,2.20286667,110100.0,110090.0,0.00048488]
[1749514309722,2.20386667,110100.0,110090.0,0.00048488]
[1749514311561,1.20624355,110100.0,110090.0,0.00048488]
[1749514311763,2.20386667,110100.0,110090.0,0.00048488]
[1749514312326,1.29084355,110100.0,110090.0,0.00048488]
[1749514312528,2.17553511,110100.0,110090.0,0.00048488]
[1749514313494,1.67672355,110100.0,110090.0,0.00048488]
[1749514313698,2.17553511,110100.0,110090.0,0.00048488]
[1749514314560,1.88313511,110100.0,110090.0,0.00048488]
[1749514314765,2.17553511,110100.0,110090.0,0.00048488]
[1749514316349,2.67434667,110100.0,110090.0,0.00048488]
[1749514316805,2.17553511,110100.0,110090.0,0.00048488]
[1749514318202,1.67672355,110100.0,110090.0,0.00048488]
[1749514318602,2.17553511,110100.0,110090.0,0.00048488]
[1749514319238,1.67672355,110100.0,110090.0,0.00048488]
[1749514319447,2.17553511,110100.0,110090.0,0.00048488]
[1749514320339,1.29084355,110100.0,110090.0,0.00048488]
[1749514320557,2.17553511,110100.0,110090.0,0.00048488]
[1749514321397,1.67672355,110100.0,110090.0,0.00048488]
[1749514321611,2.17553511,110100.0,110090.0,0.00048488]
[1749514322257,1.67672355,110100.0,110090.0,0.00048488]
[1749514322513,2.17553511,110100.0,110090.0,0.00048488]
[1749514322749,1.67672355,110100.0,110090.0,0.00048488]
[1749514322986,2.17553511,110100.0,110090.0,0.00048488]
[1749514324653,1.67672355,110100.0,110090.0,0.00048488]
[1749514324881,2.17553511,110100.0,110090.0,0.00048488]
[1749514327010,2.67434667,110100.0,110090.0,0.00048488]
[1749514327244,2.17553511,110100.0,110090.0,0.00048488]
[1749514327877,1.67672355,110100.0,110090.0,0.00048488]
[1749514328122,2.17553511,110100.0,110090.0,0.00048488]
[1749514329769,2.67434667,110100.0,110090.0,0.00048488]
[1749514331695,1.67672355,110100.0,110090.0,0.00048488]
[1749514331933,2.67434667,110100.0,110090.0,0.00048488]
[1749514332608,1.67672355,110100.0,110090.0,0.00048488]
[1749514332832,2.17553511,110100.0,110090.0,0.00048488]
[1749514333052,2.67434667,110100.0,110090.0,0.00048488]
[1749514333264,2.76614453,110100.0,110090.0,0.00048488]
[1749514333891,2.79323946,110100.0,110090.0,0.00048488]
[1749514336105,2.7014416,110100.0,110090.0,0.00048488]
[1749514336316,0.19075285,110090.0,110080.0,0.0034024]
[1749514336517,2.12985469,110090.0,110080.0,0.0034024]
[1749514336957,2.18405417,110090.0,110080.0,0.0034024]
[1749514337157,2.12985469,110090.0,110080.0,0.0034024]
[1749514337381,1.13223157,110090.0,110080.0,0.0034024]
[1749514337717,1.63404313,110090.0,110080.0,0.0034024]
[1749514338124,1.66120754,110090.0,110080.0,0.0034024]
[1749514338327,1.66320754,110090.0,110080.0,0.0034024]
[1749514338725,1.16439598,110090.0,110080.0,0.0034024]
[1749514338924,1.66320754,110090.0,110080.0,0.0034024]
[1749514339414,1.32028754,110090.0,110080.0,0.0034024]
[1749514339623,1.8005254,110090.0,110080.0,0.0034024]
[1749514340000,1.30171384,110090.0,110080.0,0.0034024]
[1749514340404,1.8005254,110090.0,110080.0,0.0034024]
[1749514341509,1.76436454,110090.0,110080.0,0.0034024]
[1749514342079,1.76568454,110090.0,110080.0,0.0034024]
[1749514342691,2.2644961,110090.0,110080.0,0.0034024]
[1749514343309,1.76568454,110090.0,110080.0,0.0034024]
[1749514343892,2.2644961,110090.0,110080.0,0.0034024]
[1749514344721,1.67388668,110090.0,110080.0,0.0034024]
[1749514345710,1.17507512,110090.0,110080.0,0.0034024]
[1749514345913,1.67388668,110090.0,110080.0,0.0034024]
[1749514347531,1.17507512,110090.0,110080.0,0.0034024]
[1749514347703,1.67388668,110090.0,110080.0,0.0034024]
[1749514348329,1.76568454,110090.0,110080.0,0.0034024]
[1749514349415,2.2917771,110090.0,110080.0,0.0034024]
[1749514349640,1.84296554,110090.0,110080.0,0.0034024]
[1749514349877,2.24997924,110090.0,110080.0,0.0034024]
[1749514354237,2.2861401,110090.0,110080.0,0.0034024]
[1749514356109,1.28851698,110090.0,110080.0,0.0034024]
[1749514356313,2.2861401,110090.0,110080.0,0.0034024]
[1749514356880,2.34163519,110090.0,110080.0,0.0034024]
[1749514357374,2.86507519,110090.0,110080.0,0.0034024]
[1749514358174,2.88507519,110090.0,110080.0,0.0034024]
[1749514360259,2.85791078,110090.0,110080.0,0.0034024]
[1749514362026,1.86028766,110090.0,110080.0,0.0034024]
[1749514362219,2.80709569,110090.0,110080.0,0.0034024]
[1749514363178,2.86145517,110090.0,110080.0,0.0034024]
[1749514363981,2.41265569,110090.0,110080.0,0.0034024]
[1749514364172,2.80705569,110090.0,110080.0,0.0034024]
[1749514364381,1.91384413,110090.0,110080.0,0.0034024]
[1749514364603,2.30844413,110090.0,110080.0,0.0034024]
[1749514365253,2.36264361,110090.0,110080.0,0.0034024]
[1749514365655,2.43662211,110090.0,110080.0,0.0034024]
[1749514366790,1.46923205,110090.0,110080.0,0.0034024]
[1749514367018,2.36224361,110090.0,110080.0,0.0034024]
[1749514371746,2.86105517,110090.0,110080.0,0.0034024]
[1749514371947,2.82489431,110090.0,110080.0,0.0034024]
[1749514375752,1.24749534,110070.0,110060.0,0.002]
[1749514375989,1.6880932,110070.0,110060.0,0.002]
[1749514376186,2.0280932,110070.0,110060.0,0.002]
[1749514376536,2.0553772,110070.0,110060.0,0.002]
[1749514379382,0.1,110050.0,110040.0,0.0183]
[1749514379559,2.24692316,110050.0,110040.0,0.04191629]
[1749514379755,2.24692316,110050.0,110040.0,0.04191664]
[1749514379964,2.27421016,110050.0,110040.0,0.04191685]
[1749514380159,2.27421016,110050.0,110040.0,0.0334]
[1749514380597,1.7753986,110050.0,110040.0,0.02896224]
[1749514380814,1.7753986,110050.0,110040.0,0.03096224]
[1749514381038,2.27421016,110050.0,110040.0,0.02244538]
[1749514381273,2.27421016,110050.0,110040.0,0.03096224]
[1749514381477,2.27421016,110050.0,110040.0,0.02244538]
[1749514381907,2.27421016,110050.0,110040.0,0.03096224]
[1749514382525,2.27421016,110050.0,110040.0,0.02244538]
[1749514382951,2.36600802,110050.0,110040.0,0.02244538]
[1749514383366,2.61421016,110050.0,110040.0,0.00614538]
[1749514383577,2.62322287,110050.0,110040.0,0.00614538]
[1749514384019,2.27766287,110050.0,110040.0,0.00614538]
[1749514384263,2.64310287,110050.0,110040.0,0.02164538]
[1749514384469,2.61589016,110050.0,110040.0,0.02164538]
[1749514384678,2.70768802,110050.0,110040.0,0.00414538]
[1749514384890,2.71168802,110050.0,110040.0,0.00414538]
[1749514385095,2.71168802,110050.0,110040.0,0.00214538]
[1749514385511,2.71552802,110050.0,110040.0,0.00214538]
[1749514385718,2.71552802,110050.0,110040.0,0.01714538]
[1749514386148,2.72515414,110050.0,110040.0,0.01714538]
[1749514386953,2.72515414,110050.0,110040.0,0.00214538]
[1749514387954,2.72515414,110050.0,110040.0,0.01744538]
[1749514388792,2.22634258,110050.0,110040.0,0.01744538]
[1749514389635,2.22634258,110050.0,110040.0,0.00214538]
[1749514389840,2.72435414,110050.0,110040.0,0.00214538]
[1749514389978,1.72665102,110050.0,110040.0,0.00214538]
[1749514390184,1.82926258,110050.0,110040.0,0.00214538]
[1749514390389,2.73991414,110050.0,110040.0,0.00214538]
[1749514390630,2.66421628,110050.0,110040.0,0.00214538]
[1749514397646,2.71421628,110050.0,110040.0,0.00214538]
[1749514401227,2.74137233,110050.0,110040.0,0.00214538]
[1749514407482,2.77766382,110050.0,110040.0,0.00214538]
[1749514408307,2.75050777,110050.0,110040.0,0.00214538]
[1749514408512,2.89650511,110050.0,110040.0,0.00214538]
[1749514409345,2.86021362,110050.0,110040.0,0.00214538]
[1749514409832,2.30270303,110050.0,110040.0,0.00214538]
[1749514410045,2.76525576,110050.0,110040.0,0.00214538]
[1749514410257,1.76763264,110050.0,110040.0,0.00214538]
[1749514410467,2.76525576,110050.0,110040.0,0.00214538]
[1749514413468,3.28889576,110050.0,110040.0,0.00214538]
[1749514413669,3.38069362,110050.0,110040.0,0.00214538]
[1749514414078,0.79875643,110030.0,110020.0,0.002]
[1749514414282,1.18767429,110030.0,110020.0,0.00204847]
[1749514414850,1.71378085,110030.0,110020.0,0.00204847]
[1749514415218,1.75786697,110030.0,110020.0,0.00204847]
[1749514415434,1.25905541,110030.0,110020.0,0.00204847]
[1749514415932,2.04786697,110030.0,110020.0,0.00204847]
[1749514416125,1.59905541,110030.0,110020.0,0.00204847]
[1749514416335,1.60005541,110030.0,110020.0,0.00204847]
[1749514417218,1.68566851,110030.0,110020.0,0.00204847]
[1749514417424,1.30293541,110030.0,110020.0,0.00204847]
[1749514417637,1.69569541,110030.0,110020.0,0.00204847]
[1749514418261,1.72306041,110030.0,110020.0,0.00204847]
[1749514420580,1.72304332,110030.0,110020.0,0.00204847]
[1749514422116,2.22185488,110030.0,110020.0,0.00204847]
[1749514422540,1.82909488,110030.0,110020.0,0.00204847]
[1749514422683,2.22089488,110030.0,110020.0,0.00204847]
[1749514423065,1.31438332,110030.0,110020.0,0.00204847]
[1749514423276,1.70626332,110030.0,110020.0,0.00204847]
[1749514423480,2.2075373,110030.0,110020.0,0.00204847]
[1749514423871,1.8156573,110030.0,110020.0,0.00204847]
[1749514424199,2.2074173,110030.0,110020.0,0.00204847]
[1749514424839,1.8156573,110030.0,110020.0,0.01824847]
[1749514425040,1.8156573,110030.0,110020.0,0.03444847]
[1749514425041,1.88028613,110030.0,110020.0,0.03444847]
[1749514425245,2.27188613,110030.0,110020.0,0.03444847]
[1749514425895,2.18008827,110030.0,110020.0,0.03444847]
[1749514426574,2.17980827,110030.0,110020.0,0.03444847]
[1749514426770,2.17976827,110030.0,110020.0,0.03444847]
[1749514427382,0.37103773,110030.0,110020.0,0.03444847]
[1749514427564,1.20694273,110030.0,110020.0,0.03444847]
[1749514427763,1.70687103,110030.0,110020.0,0.06000088]
[1749514427935,2.04687103,110030.0,110020.0,0.06000037]
[1749514428317,2.09687103,110030.0,110020.0,0.06000008]
[1749514428470,2.09687103,110030.0,110020.0,0.04296564]
[1749514428689,2.09687103,110030.0,110020.0,0.04296578]
[1749514428899,2.09687103,110030.0,110020.0,0.0514831]
[1749514429232,2.09687103,110030.0,110020.0,0.06000041]
[1749514429466,1.59694273,110030.0,110020.0,0.06000041]
[1749514429647,2.09687103,110030.0,110020.0,0.04296576]
[1749514429783,2.04687103,110030.0,110020.0,0.06000037]
[1749514429996,2.04687103,110030.0,110020.0,0.03444847]
[1749514430196,2.09687103,110030.0,110020.0,0.06000041]
[1749514430406,2.09687103,110030.0,110020.0,0.04296578]